bitfinex/quotes_SOLUSD_20250123
["timestamp","ask_amount","ask_price","bid_price","bid_amount"]
[1737605994439,2.01283125,246.83,246.77,18.93520027]
[1737605994843,2.01283125,246.85,246.77,18.93520027]
[1737605995521,2.01283125,246.85,246.78,4.0521]
[1737605995729,2.01283125,246.85,246.8,18.93520027]
[1737605996370,2.01283125,246.82,246.8,18.93520027]
[1737605996963,2.01283125,246.84,246.8,18.93520027]
[1737605997244,2.01283125,246.9,246.83,18.93520027]
[1737605997428,2.01283125,246.9,246.87,18.93520027]
[1737605997763,2.07583125,246.95,246.89,18.93520027]
[1737605998065,2.01283125,246.93,246.91,18.93520027]
[1737605998230,2.01283125,246.9,246.87,18.93520027]
[1737605998546,0.063,246.95,246.89,18.93520027]
[1737605998726,0.063,246.95,246.93,18.93520027]
[1737605999433,2.07583125,246.95,246.93,18.93520027]
[1737605999635,2.07583125,246.95,246.91,18.93520027]
[1737606000257,2.07583125,246.95,246.89,18.93520027]
[1737606000258,2.01283125,246.92,246.89,18.93520027]
[1737606000442,2.01283125,246.92,246.87,18.93520027]
[1737606000636,2.01283125,246.91,246.89,18.93520027]
[1737606001048,2.01283125,246.89,246.87,18.93520027]
[1737606001444,2.01283125,246.89,246.85,18.93520027]
[1737606001627,2.01283125,246.87,246.85,18.93520027]
[1737606002966,2.01283125,246.89,246.85,18.93520027]
[1737606003134,2.01283125,246.86,246.85,18.93520027]
[1737606003333,2.01283125,246.88,246.85,18.93520027]
[1737606003734,2.01283125,246.86,246.83,18.93520027]
[1737606003935,2.01283125,246.83,246.81,18.93520027]
[1737606004154,2.01283125,246.83,246.79,18.93520027]
[1737606004359,2.01283125,246.85,246.79,18.93520027]
[1737606004546,2.01283125,246.83,246.79,18.93520027]
[1737606005470,2.01283125,246.85,246.81,18.93520027]
[1737606005678,2.01283125,246.85,246.84,18.93520027]
[1737606006258,2.01283125,246.85,246.82,18.93520027]
[1737606006555,2.01283125,246.83,246.76,18.93520027]
[1737606006750,2.01283125,246.8,246.74,18.93520027]
[1737606007055,2.01283125,246.78,246.74,330.93520027]
[1737606007264,2.01283125,246.8,246.74,330.93520027]
[1737606007444,2.01283125,246.8,246.74,18.93520027]
[1737606007638,2.01283125,246.77,246.72,18.93520027]
[1737606007839,20.94803152,246.81,246.72,18.93520027]
[1737606008053,2.01283125,246.81,246.74,18.93520027]
[1737606008564,2.01283125,246.79,246.74,18.93520027]
[1737606008749,2.01283125,246.81,246.74,18.93520027]
[1737606009666,2.01283125,246.81,246.76,18.93520027]
[1737606009965,2.01283125,246.83,246.79,18.93520027]
[1737606010144,2.01283125,246.81,246.77,18.93520027]
[1737606010556,2.01283125,246.83,246.77,330.93520027]
[1737606011644,2.01283125,246.83,246.79,18.93520027]
[1737606012371,2.01283125,246.79,246.73,18.93520027]
[1737606012664,2.01283125,246.79,246.72,4.083]
[1737606013842,2.01283125,246.79,246.72,0.03]
[1737606014242,6.06453125,246.81,246.72,0.03]
[1737606014959,2.01283125,246.81,246.72,0.03]
[1737606015147,2.01283125,246.81,246.73,312.0]
[1737606015348,2.01283125,246.79,246.73,312.0]
[1737606016462,2.01283125,246.73,246.72,0.03]
[1737606019062,2.01283125,246.75,246.72,0.03]
[1737606019250,2.01283125,246.77,246.73,312.0]
[1737606020052,2.01283125,246.79,246.73,312.0]
[1737606020861,2.01283125,246.77,246.73,312.0]
[1737606021587,2.01283125,246.83,246.73,316.0529]
[1737606021754,2.01283125,246.83,246.73,4.0529]
[1737606022084,6.06423125,246.83,246.73,24.0529]
[1737606022286,2.01283125,246.83,246.73,24.0529]
[1737606022573,2.01283125,246.83,246.73,4.0529]
[1737606023667,2.01283125,246.79,246.73,4.0529]
[1737606023893,2.01283125,246.79,246.72,20.0]
[1737606024176,2.01283125,246.76,246.67,0.46811138]
[1737606024358,2.01283125,246.76,246.66,2.98716875]
[1737606024359,2.01283125,246.76,246.65,4.0543]
[1737606024558,2.01283125,246.76,246.69,20.0]
[1737606024769,2.01283125,246.76,246.69,332.0]
[1737606024978,2.01283125,246.76,246.69,312.0]
[1737606025160,2.01283125,246.76,246.66,23.776884]
[1737606025371,2.01283125,246.72,246.65,4.0543]
[1737606025677,2.01283125,246.7,246.64,1.6168]
[1737606026263,2.01283125,246.7,246.64,5.6712]
[1737606026659,2.01283125,246.68,246.62,4.0546]
[1737606027270,2.01283125,246.68,246.62,24.0546]
[1737606029368,2.01283125,246.68,246.63,20.0]
[1737606029575,2.01283125,246.68,246.62,4.0546]
[1737606029983,2.01283125,246.64,246.59,20.0]
[1737606030186,2.01283125,246.67,246.6,4.055]
[1737606030695,2.01283125,246.69,246.6,4.055]
[1737606031387,2.01283125,246.69,246.61,26.76405275]
[1737606031569,2.01283125,246.71,246.61,26.76405275]
[1737606031767,2.01283125,246.69,246.61,26.76405275]
[1737606031969,2.01283125,246.73,246.62,0.46866175]
[1737606032163,2.01283125,246.73,246.63,2.98716875]
[1737606032576,2.01283125,246.73,246.63,314.98716875]
[1737606032776,2.01283125,246.77,246.65,2.98716875]
[1737606032978,2.01283125,246.79,246.69,2.98716875]
[1737606033288,2.01283125,246.81,246.71,2.98716875]
[1737606033787,2.01283125,246.83,246.73,2.98716875]
[1737606033988,2.01283125,246.83,246.75,22.98716875]
[1737606034177,2.01283125,246.83,246.76,23.776884]
[1737606034793,2.01283125,246.89,246.79,20.0]
[1737606035288,2.01283125,246.89,246.8,24.0518]
[1737606035776,2.01283125,246.89,246.8,4.0518]
[1737606035976,2.01283125,246.89,246.81,20.0]
[1737606036973,2.01283125,246.89,246.8,4.0518]
[1737606037973,6.3238,246.92,246.81,27.23154828]
[1737606038182,2.01283125,246.91,246.82,20.0]
[1737606038386,2.01283125,246.91,246.81,26.76405275]
[1737606038576,6.3238,246.92,246.81,26.76405275]
[1737606038892,2.01283125,246.88,246.8,4.0518]
[1737606039089,2.01283125,246.83,246.76,4.0524]
[1737606039286,2.01283125,246.81,246.72,4.0531]
[1737606039483,2.01283125,246.81,246.72,27.829984]
[1737606039788,2.01283125,246.81,246.72,4.0531]
[1737606040169,2.01283125,246.81,246.73,20.0]
[1737606040371,2.01283125,246.87,246.74,47.23204255]
[1737606041069,2.01283125,246.84,246.75,20.0]
[1737606041288,2.01283125,246.87,246.75,20.4679367]
[1737606041501,2.01283125,246.83,246.76,4.0523]
[1737606041675,2.01283125,246.8,246.75,20.0]
[1737606041868,2.01283125,246.82,246.75,20.0]
[1737606042269,2.01283125,246.82,246.71,4.0533]
[1737606042471,2.01283125,246.78,246.71,4.0533]
[1737606042772,2.01283125,246.76,246.65,1.6391]
[1737606042985,2.01283125,246.76,246.66,4.054]
[1737606043173,2.01283125,246.76,246.68,20.0]
[1737606043493,14.1775,246.87,246.68,4.0538]
[1737606043494,2.01283125,246.81,246.68,4.0538]
[1737606043681,2.01283125,246.81,246.7,20.0]
[1737606044982,2.01283125,246.81,246.71,0.46811035]
[1737606045689,2.01283125,246.79,246.71,0.46811035]
[1737606045891,2.01283125,246.79,246.72,4.0531]
[1737606047174,2.01283125,246.76,246.65,4.62626875]
[1737606047497,2.01283125,246.76,246.66,4.0541]
[1737606047916,2.01283125,246.73,246.66,4.0541]
[1737606048400,2.01283125,246.73,246.66,24.0541]
[1737606048978,2.01283125,246.73,246.64,24.0543]
[1737606049179,2.01283125,246.71,246.64,24.0543]
[1737606049705,2.01283125,246.71,246.64,4.0543]
[1737606050699,2.01283125,246.73,246.64,4.0543]
[1737606050912,2.01283125,246.71,246.64,4.0543]
[1737606052409,2.01283125,246.67,246.6,0.03]
[1737606052705,2.01283125,246.65,246.6,0.03]
[1737606053078,2.01283125,246.65,246.6,4.0851]
[1737606053594,2.01283125,246.65,246.6,0.03]
[1737606054384,2.01283125,246.67,246.6,0.03]
[1737606054778,2.01283125,246.65,246.6,0.03]
[1737606055179,2.01283125,246.63,246.6,0.03]
[1737606055380,2.01283125,246.65,246.6,0.03]
[1737606056905,4.0541,246.67,246.6,0.03]
[1737606056906,2.01283125,246.67,246.6,0.03]
[1737606057196,2.01283125,246.69,246.6,0.03]
[1737606057708,2.01283125,246.71,246.62,20.0]
[1737606057875,2.01283125,246.71,246.63,20.0]
[1737606059291,2.01283125,246.69,246.61,20.0]
[1737606059893,2.01283125,246.69,246.6,0.03]
[1737606060101,2.01283125,246.69,246.61,4.0549]
[1737606060296,2.01283125,246.67,246.6,0.03]
[1737606060492,2.01283125,246.69,246.6,0.03]
[1737606060998,2.01283125,246.67,246.6,0.03]
[1737606061191,2.01283125,246.67,246.6,4.085]
[1737606061395,2.01283125,246.65,246.6,0.03]
[1737606061596,2.01283125,246.67,246.6,0.03]
[1737606062096,2.01283125,246.65,246.6,0.03]
[1737606063489,2.01283125,246.61,246.6,0.03]
[1737606064589,4.0544,246.64,246.4,14.78886875]
[1737606064590,2.01283125,246.52,246.4,14.78886875]
[1737606064789,14.95098578,246.64,246.42,10.48716875]
[1737606064790,2.01283125,246.54,246.42,10.48716875]
[1737606064991,2.01283125,246.52,246.42,4.0581]
[1737606065212,2.01283125,246.5,246.42,4.0581]
[1737606066197,2.01283125,246.48,246.39,4.0586]
[1737606066408,2.01283125,246.48,246.41,20.0]
[1737606066697,2.01283125,246.46,246.37,4.52873322]
[1737606067106,2.01283125,246.42,246.35,0.03]
[1737606067301,2.01283125,246.42,246.35,4.0891]
[1737606067502,2.01283125,246.4,246.35,20.03]
[1737606068427,2.01283125,246.38,246.35,0.03]
[1737606068826,2.01283125,246.36,246.35,0.03]
[1737606069539,6.3578,246.39,246.35,0.03]
[1737606069540,2.01283125,246.38,246.35,0.03]
[1737606072432,2.01283125,246.43,246.35,0.03]
[1737606073421,6.3578,246.45,246.35,0.5003837]
[1737606073753,2.01283125,246.49,246.37,23.776884]
[1737606073953,2.01283125,246.43,246.36,4.0591]
[1737606074249,2.01283125,246.39,246.35,0.03]
[1737606074610,2.01283125,246.37,246.35,0.03]
[1737606075366,6.3578,246.36,246.35,0.03]
[1737606076643,2.01283125,246.37,246.35,0.03]
[1737606076848,2.01283125,246.39,246.35,0.03]
[1737606077064,2.01283125,246.37,246.35,0.03]
[1737606077237,2.01283125,246.41,246.35,0.03]
[1737606077438,2.01283125,246.43,246.35,0.03]
[1737606077644,2.01283125,246.44,246.35,0.50046699]
[1737606077866,2.01283125,246.44,246.37,23.776884]
[1737606078067,2.01283125,246.41,246.36,4.0591]
[1737606078275,2.01283125,246.45,246.36,4.0591]
[1737606079081,6.3578,246.49,246.37,23.776884]
[1737606079254,2.01283125,246.48,246.37,23.776884]
[1737606079460,2.01283125,246.46,246.37,23.776884]
[1737606079784,2.01283125,246.43,246.35,0.03]
[1737606079985,2.01283125,246.38,246.35,0.03]
[1737606080267,2.01283125,246.44,246.35,0.03]
[1737606080479,2.01283125,246.46,246.35,20.03]
[1737606080644,2.01283125,246.48,246.36,24.24713909]
[1737606080849,6.3578,246.49,246.36,24.24713909]
[1737606081255,2.01283125,246.48,246.36,24.24713909]
[1737606081458,6.3578,246.49,246.37,2.98716875]
[1737606081659,6.3578,246.49,246.38,0.4699748]
[1737606081863,2.01283125,246.48,246.4,23.776884]
[1737606082359,6.3578,246.49,246.41,0.47001161]
[1737606082547,2.01283125,246.5,246.41,0.47001161]
[1737606082742,6.06933125,246.52,246.41,0.47001161]
[1737606082944,2.01283125,246.52,246.41,0.47001161]
[1737606083157,2.01283125,246.5,246.41,0.47001161]
[1737606083349,2.01283125,246.52,246.41,0.47001161]
[1737606083568,2.01283125,246.51,246.41,0.47001161]
[1737606083863,2.01283125,246.49,246.42,4.0581]
[1737606084160,2.01283125,246.51,246.42,4.0581]
[1737606084644,6.6169,246.55,246.42,4.0581]
[1737606084645,8.62973125,246.55,246.43,44.24671505]
[1737606084840,2.01283125,246.57,246.43,47.2338838]
[1737606085046,2.01283125,246.55,246.44,23.776884]
[1737606085982,2.01283125,246.47,246.39,1.629]
[1737606086156,2.01283125,246.47,246.36,4.16]
[1737606086351,2.01283125,246.47,246.35,0.03]
[1737606086554,2.01283125,246.47,246.37,20.0]
[1737606086983,2.01283125,246.47,246.38,20.0]
[1737606087285,2.01283125,246.49,246.39,27.835384]
[1737606087657,2.01283125,246.49,246.4,312.0]
[1737606087851,6.06943125,246.51,246.41,23.776884]
[1737606088251,6.06943125,246.51,246.39,4.0585]
[1737606088451,2.01283125,246.49,246.39,4.0585]
[1737606089263,2.01283125,246.43,246.35,0.03]
[1737606089581,2.01283125,246.43,246.36,23.776884]
[1737606089785,4.0574,246.46,246.35,0.03]
[1737606089786,2.01283125,246.41,246.35,0.03]
[1737606089958,4.0574,246.46,246.35,0.03]
[1737606089959,2.01283125,246.37,246.35,0.03]
[1737606092806,2.01283125,246.39,246.35,0.03]
[1737606092983,4.0585,246.4,246.35,0.03]
[1737606093300,2.01283125,246.39,246.35,0.03]
[1737606094371,11.7402,246.46,246.35,0.03]
[1737606094372,2.01283125,246.41,246.35,0.03]
[1737606094576,2.01283125,246.43,246.35,0.03]
[1737606094794,2.01283125,246.46,246.35,0.50026789]
[1737606095087,2.01283125,246.46,246.35,23.48743664]
[1737606095470,2.01283125,246.46,246.36,23.776884]
[1737606095682,2.01283125,246.42,246.37,0.47000115]
[1737606095888,2.01283125,246.42,246.35,0.03]
[1737606096087,6.07103125,246.42,246.35,0.03]
[1737606096385,2.01283125,246.4,246.35,0.03]
[1737606097267,2.01283125,246.4,246.35,312.03]
[1737606097785,2.01283125,246.4,246.35,0.03]
[1737606098491,6.07133125,246.4,246.35,0.03]
[1737606098795,2.01283125,246.36,246.35,0.03]
[1737606100066,6.07193125,246.36,246.35,0.03]
[1737606100294,2.01283125,246.36,246.35,0.03]
[1737606106673,6.07193125,246.36,246.35,0.03]
[1737606111306,2.01283125,246.26,246.21,13.670269]
[1737606112005,2.01283125,246.24,246.21,13.670269]
[1737606113100,2.01283125,246.22,246.21,13.670269]
[1737606113289,2.01283125,246.18,246.1,0.50173866]
[1737606113500,2.01283125,246.14,246.1,0.50173866]
[1737606113811,0.9601,246.21,246.1,0.03]
[1737606113812,2.01283125,246.11,246.1,0.03]
[1737606117608,2.01283125,246.18,246.1,0.03]
[1737606118601,2.01283125,246.14,246.1,0.03]
[1737606118788,2.01283125,246.16,246.1,0.03]
[1737606118987,2.01283125,246.18,246.1,0.03]
[1737606119189,2.01283125,246.14,246.1,0.03]
[1737606119503,4.0611,246.24,246.1,0.03]
[1737606119504,2.01283125,246.18,246.1,0.03]
[1737606120199,2.01283125,246.2,246.11,20.0]
[1737606120416,2.01283125,246.2,246.12,23.776884]
[1737606120627,2.01283125,246.23,246.13,0.47170872]
[1737606120920,2.01283125,246.25,246.19,312.0]
[1737606121105,2.01283125,246.22,246.19,312.0]
[1737606121305,2.01283125,246.26,246.16,27.8455]
[1737606121514,2.01283125,246.28,246.17,23.776884]
[1737606121713,2.01283125,246.32,246.21,23.776884]
[1737606121922,4.2,246.39,246.17,26.76405275]
[1737606121923,2.01283125,246.26,246.17,0.47100869]
[1737606122220,2.01283125,246.22,246.16,7.8455]
[1737606122416,2.01283125,246.22,246.16,6.2546]
[1737606122805,2.01283125,246.2,246.16,6.2546]
[1737606123006,2.01283125,246.22,246.16,6.2546]
[1737606123214,2.01283125,246.2,246.11,4.0631]
[1737606123530,2.01283125,246.18,246.1,11.9388]
[1737606123910,10.1511,246.28,246.1,11.9388]
[1737606123911,2.01283125,246.16,246.1,7.8755]
[1737606124104,2.01283125,246.13,246.1,0.03]
[1737606124304,2.01283125,246.13,246.1,312.03]
[1737606124517,2.01283125,246.11,246.1,312.03]
[1737606125321,2.01283125,246.15,246.1,312.03]
[1737606125624,2.01283125,246.17,246.1,312.03]
[1737606125830,2.01283125,246.17,246.1,316.0933]
[1737606126010,2.01283125,246.17,246.1,4.0933]
[1737606126905,2.01283125,246.11,246.1,0.03]
[1737606127529,6.07603125,246.11,246.1,0.03]
[1737606127824,2.01283125,246.13,246.1,0.03]
[1737606128232,2.01283125,246.14,246.1,0.03]
[1737606129018,2.01283125,246.14,246.1,312.03]
[1737606129427,2.01283125,246.14,246.1,4.0933]
[1737606129813,2.01283125,246.18,246.11,23.776884]
[1737606130025,0.063,246.21,246.11,23.776884]
[1737606130026,0.063,246.21,246.11,24.24866753]
[1737606130212,2.01283125,246.19,246.11,24.24866753]
[1737606130419,0.063,246.21,246.11,0.47178353]
[1737606130420,2.07583125,246.21,246.11,0.47178353]
[1737606130830,2.07583125,246.21,246.11,24.24866753]
[1737606131128,0.063,246.21,246.15,23.776884]
[1737606131319,0.063,246.21,246.15,27.839284]
[1737606132425,2.01283125,246.2,246.14,1.6272]
[1737606132731,2.07583125,246.21,246.14,5.6898]
[1737606133228,2.07583125,246.21,246.15,23.776884]
[1737606133737,2.07583125,246.21,246.15,27.839284]
[1737606134238,2.07583125,246.21,246.1,10.1884]
[1737606134239,2.01283125,246.12,246.1,0.03]
[1737606135212,2.01283125,246.16,246.1,0.03]
[1737606135435,2.01283125,246.16,246.12,312.0]
[1737606135824,2.01283125,246.14,246.12,312.0]
[1737606136139,2.01283125,246.15,246.1,0.03]
[1737606136642,2.01283125,246.13,246.1,0.03]
[1737606136842,2.01283125,246.11,246.1,0.03]
[1737606137138,2.01283125,246.14,246.1,0.03]
[1737606137536,2.01283125,246.11,246.1,0.03]
[1737606137736,2.01283125,246.13,246.1,0.03]
[1737606138036,2.01283125,246.11,246.1,0.03]
[1737606138953,2.01283125,246.13,246.1,312.03]
[1737606139120,2.01283125,246.15,246.1,312.03]
[1737606139324,2.01283125,246.11,246.1,312.03]
[1737606139834,2.01283125,246.13,246.1,312.03]
[1737606140039,2.01283125,246.15,246.1,312.03]
[1737606140225,2.01283125,246.13,246.1,312.03]
[1737606140418,2.01283125,246.15,246.1,312.03]
[1737606140620,2.01283125,246.13,246.1,312.03]
[1737606140821,2.01283125,246.11,246.1,312.03]
[1737606141341,2.01283125,246.13,246.1,312.03]
[1737606141638,4.0622,246.17,246.1,312.03]
[1737606141639,2.01283125,246.11,246.1,312.03]
[1737606142543,4.0622,246.17,246.1,312.03]
[1737606142544,2.01283125,246.17,246.1,312.03]
[1737606142840,2.01283125,246.19,246.11,24.24880769]
[1737606143935,0.063,246.21,246.11,24.24880769]
[1737606144115,0.063,246.21,246.15,30.417884]
[1737606144320,2.07583125,246.21,246.15,30.417884]
[1737606144529,0.063,246.21,246.15,30.417884]
[1737606144733,0.063,246.21,246.16,4.0623]
[1737606145443,2.07583125,246.21,246.16,4.0623]
[1737606145735,0.063,246.21,246.2,312.0]
[1737606146941,0.063,246.21,246.19,4.0618]
[1737606147924,0.063,246.21,246.17,23.776884]
[1737606148922,0.063,246.21,246.16,27.839184]
[1737606149442,2.01283125,246.3,246.2,1.5588]
[1737606149632,2.01283125,246.36,246.25,23.776884]
[1737606149842,2.01283125,246.36,246.33,312.0]
[1737606150142,2.01283125,246.34,246.33,312.0]
[1737606150356,2.01283125,246.32,246.21,20.0]
[1737606150526,2.01283125,246.32,246.24,23.776884]
[1737606150719,2.01283125,246.3,246.24,23.776884]
[1737606150922,2.01283125,246.28,246.2,1.5588]
[1737606151150,2.01283125,246.26,246.21,4.0615]
[1737606151444,7.5,246.37,246.2,5.6204]
[1737606151445,2.01283125,246.24,246.2,5.6204]
[1737606151648,2.01283125,246.24,246.14,1.5588]
[1737606151838,2.01283125,246.27,246.16,4.0623]
[1737606152038,2.01283125,246.25,246.17,23.776884]
[1737606152223,2.01283125,246.27,246.17,23.776884]
[1737606152824,2.01283125,246.24,246.17,23.776884]
[1737606153044,2.01283125,246.24,246.16,14.2182]
[1737606153045,2.01283125,246.24,246.19,23.776884]
[1737606153253,2.01283125,246.24,246.21,312.0]
[1737606153737,2.01283125,246.26,246.21,312.0]
[1737606153941,2.01283125,246.27,246.21,312.0]
[1737606154124,2.01283125,246.27,246.22,23.776884]
[1737606154325,2.01283125,246.29,246.22,23.776884]
[1737606154737,2.01283125,246.31,246.22,23.776884]
[1737606155044,2.01283125,246.29,246.22,23.776884]
[1737606156047,2.01283125,246.29,246.23,4.0612]
[1737606157048,0.063,246.32,246.24,23.776884]
[1737606157246,0.063,246.32,246.31,335.776884]
[1737606158546,0.063,246.32,246.31,339.836784]
[1737606158751,0.0001,246.32,246.31,347.336784]
[1737606158933,2.01283125,246.45,246.34,20.0]
[1737606159252,2.01283125,246.49,246.38,43.776884]
[1737606159450,12.028,246.57,246.47,20.0]
[1737606159451,6.13373125,246.57,246.47,20.0]
[1737606159748,0.063,246.57,246.48,24.24618648]
[1737606159925,0.063,246.57,246.51,20.0]
[1737606160129,0.063,246.57,246.45,12.17]
[1737606160130,0.0001,246.6,246.59,20.0]
[1737606160357,0.0001,246.6,246.59,48.30098876]
[1737606160557,0.0001,246.6,246.59,6.93170476]
[1737606160767,2.01293125,246.6,246.56,1.5372]
[1737606160946,0.0001,246.6,246.56,1.5372]
[1737606161255,0.0001,246.6,246.57,23.776884]
[1737606161455,0.0001,246.6,246.56,1.5372]
[1737606161648,0.0001,246.6,246.57,23.776884]
[1737606162157,0.0001,246.6,246.59,335.776884]
[1737606162340,6.15386222,246.69,246.63,20.0]
[1737606162543,6.15386222,246.69,246.64,0.4685372]
[1737606162938,2.01283125,246.7,246.59,20.4685101]
[1737606163149,2.01283125,246.7,246.63,20.0]
[1737606163946,2.01283125,246.7,246.64,23.776884]
[1737606164163,17.6909,246.85,246.64,23.776884]
[1737606164164,2.01283125,246.74,246.64,24.2453542]
[1737606165066,2.01283125,246.74,246.64,28.2997542]
[1737606165649,2.01283125,246.74,246.7,312.0]
[1737606166151,2.01283125,246.76,246.67,23.776884]
[1737606166643,2.01283125,246.74,246.68,0.46819139]
[1737606167057,2.01283125,246.74,246.69,23.776884]
[1737606167259,2.01283125,246.81,246.71,20.0]
[1737606167450,2.01283125,246.81,246.72,0.46785657]
[1737606167760,2.01283125,246.82,246.72,0.46785657]
[1737606167960,6.06423125,246.83,246.72,0.46785657]
[1737606168345,6.06423125,246.83,246.72,24.24474057]
[1737606168759,2.01283125,246.79,246.72,24.24474057]
[1737606168952,2.01283125,246.75,246.7,20.0]
[1737606169265,2.01283125,246.71,246.67,6.4629]
[1737606169577,2.01283125,246.71,246.61,6.0885]
[1737606169775,2.01283125,246.71,246.61,6.55702244]
[1737606170064,2.01283125,246.7,246.64,20.0]
[1737606170273,2.01283125,246.7,246.65,23.776884]
[1737606170681,2.01283125,246.72,246.65,23.776884]
[1737606170847,2.01283125,246.69,246.65,23.776884]
[1737606171246,2.01283125,246.71,246.65,23.776884]
[1737606171444,4.0532,246.72,246.65,23.776884]
[1737606172158,2.01283125,246.7,246.65,335.776884]
[1737606172355,2.01283125,246.68,246.61,6.0885]
[1737606172984,2.01283125,246.68,246.62,23.776884]
[1737606173876,2.01283125,246.65,246.57,4.0555]
[1737606174039,2.01283125,246.65,246.56,1.5372]
[1737606174040,2.01283125,246.6,246.55,6.0885]
[1737606174973,2.01283125,246.66,246.56,0.46908454]
[1737606175282,2.01283125,246.64,246.59,23.776884]
[1737606175642,2.01283125,246.66,246.59,24.24576315]
[1737606175862,2.01283125,246.66,246.59,4.52397915]
[1737606176059,2.01283125,246.66,246.6,0.03]
[1737606176260,2.01283125,246.68,246.6,0.03]
[1737606176444,2.01283125,246.68,246.62,23.776884]
[1737606176643,2.01283125,246.7,246.63,0.46868976]
[1737606177665,2.01283125,246.68,246.65,20.0]
[1737606177864,2.01283125,246.73,246.66,0.46844379]
[1737606178352,0.063,246.74,246.7,23.776884]
[1737606178561,2.01283125,246.71,246.7,23.776884]
[1737606178854,2.01283125,246.71,246.7,335.776884]
[1737606179060,2.07583125,246.74,246.7,335.776884]
[1737606179378,2.01283125,246.72,246.7,335.776884]
[1737606179673,0.063,246.74,246.7,23.776884]
[1737606179975,0.063,246.74,246.7,4.0533]
[1737606180374,2.07583125,246.74,246.68,47.830684]
[1737606180893,2.01283125,246.72,246.68,47.830684]
[1737606181266,2.07583125,246.74,246.68,47.830684]
[1737606181500,2.01283125,246.72,246.68,47.830684]
[1737606181704,2.07583125,246.74,246.68,47.830684]
[1737606182492,0.063,246.74,246.69,0.46824998]
[1737606182695,0.063,246.74,246.73,335.776884]
[1737606184782,0.063,246.74,246.73,339.829884]
[1737606184965,0.0001,246.74,246.73,339.829884]
[1737606185365,0.063,246.85,246.77,20.0]
[1737606185682,0.063,246.85,246.83,23.776884]
[1737606185998,0.063,246.85,246.84,0.46721791]
[1737606186375,0.063,246.85,246.83,20.0]
[1737606186598,0.063,246.85,246.78,2.04417425]
[1737606186782,2.01283125,246.82,246.74,4.0528]
[1737606187180,2.01283125,246.82,246.8,20.0]
[1737606187586,0.063,246.85,246.8,20.0]
[1737606187587,2.01283125,246.84,246.8,20.0]
[1737606187789,2.01283125,246.84,246.78,0.46768116]
[1737606187994,2.01283125,246.8,246.77,20.0]
[1737606188174,2.07583125,246.85,246.79,23.776884]
[1737606188699,2.07583125,246.85,246.84,312.0]
[1737606188874,2.01283125,246.81,246.72,1.5766]
[1737606189075,2.01283125,246.79,246.72,1.5766]
[1737606189302,2.01283125,246.81,246.73,20.0]
[1737606189577,0.063,246.85,246.76,23.776884]
[1737606189578,2.01283125,246.83,246.76,23.776884]
[1737606189808,2.07583125,246.85,246.79,20.0]
[1737606189977,0.063,246.85,246.79,20.0]
[1737606190183,2.01283125,246.82,246.8,0.46750685]
[1737606190401,2.01283125,246.78,246.77,20.0]
[1737606190918,2.01283125,246.74,246.71,5.65930244]
[1737606191130,2.01283125,246.74,246.71,4.0532]
[1737606191409,2.01283125,246.76,246.75,20.0]
[1737606192111,2.01283125,246.76,246.68,4.0537]
[1737606192285,2.01283125,246.71,246.7,23.776884]
[1737606192614,2.01283125,246.73,246.72,20.0]
[1737606193177,2.01283125,246.7,246.67,4.0538]
[1737606193400,2.01283125,246.7,246.65,5.68023158]
[1737606193603,2.01283125,246.7,246.68,20.0]
[1737606194083,2.01283125,246.68,246.65,1.62603158]
[1737606194395,2.01283125,246.72,246.67,20.0]
[1737606194602,2.01283125,246.72,246.68,0.46834932]
[1737606194802,2.01283125,246.72,246.67,20.0]
[1737606194978,2.01283125,246.72,246.71,312.0]
[1737606195178,2.01283125,246.74,246.73,20.0]
[1737606195495,6.5527,246.87,246.77,20.0]
[1737606195496,2.01283125,246.8,246.77,20.0]
[1737606195676,2.01283125,246.78,246.77,20.0]
[1737606195876,2.01283125,246.78,246.72,0.46824307]
[1737606196391,2.01283125,246.82,246.74,20.0]
[1737606196597,2.01283125,246.82,246.75,0.46779364]
[1737606197299,2.01283125,246.84,246.77,23.776884]